bitfinex/quotes_SOLUSD_20251031
["timestamp","ask_amount","ask_price","bid_price","bid_amount"]
[1761878780080,4.10794163,184.37,184.28,0.67]
[1761878780352,7.82972868,184.34,184.29,6.09603854]
[1761878780559,12.33464852,184.33,184.29,6.09603854]
[1761878780745,7.82972868,184.33,184.29,6.09603854]
[1761878780937,7.82972868,184.33,184.3,0.67]
[1761878781140,0.5413306,184.35,184.22,0.54282922]
[1761878781332,0.9513306,184.35,184.26,0.67]
[1761878781532,7.82972868,184.31,184.26,0.67]
[1761878781933,7.82972868,184.3,184.26,0.67]
[1761878782441,7.82972868,184.3,184.27,5.42681934]
[1761878783041,7.82972868,184.3,184.27,6.09681934]
[1761878783240,7.82972868,184.3,184.28,6.89098999]
[1761878783462,7.82972868,184.31,184.28,7.56098999]
[1761878783650,7.82972868,184.31,184.29,0.67]
[1761878783958,7.82972868,184.34,184.29,0.67]
[1761878784764,7.82972868,184.33,184.3,5.42593597]
[1761878785261,7.82972868,184.34,184.31,0.67]
[1761878785951,7.82972868,184.35,184.31,0.67]
[1761878786263,3.5664343,184.36,184.31,8.49972868]
[1761878786450,7.82972868,184.37,184.32,0.67]
[1761878786635,3.9648871,184.36,184.33,5.42505289]
[1761878786838,3.9648871,184.36,184.33,18.98768512]
[1761878787039,3.9648871,184.36,184.34,0.67]
[1761878787361,7.82972868,184.38,184.34,0.67]
[1761878787591,7.82972868,184.38,184.32,7.82972868]
[1761878787592,7.82972868,184.35,184.32,5.4253097]
[1761878787863,7.82972868,184.34,184.32,5.4253097]
[1761878788067,7.82972868,184.34,184.31,5.42563695]
[1761878789364,7.82972868,184.33,184.3,6.0959023]
[1761878789565,11.79384683,184.32,184.3,5.4259023]
[1761878789872,7.82972868,184.32,184.3,6.0959023]
[1761878791646,11.39793719,184.36,184.31,0.67]
[1761878791965,20.592,184.38,184.31,8.49972868]
[1761878791966,7.27605309,184.35,184.31,8.49972868]
[1761878792170,3.96446391,184.34,184.31,8.49972868]
[1761878792345,11.39793719,184.37,184.32,0.67]
[1761878792545,7.27401356,184.36,184.32,0.67]
[1761878792852,7.27401356,184.35,184.33,5.42505289]
[1761878793053,3.56820851,184.37,184.34,0.67]
[1761878793269,7.27405058,184.36,184.34,0.67]
[1761878793468,3.56820851,184.37,184.34,8.49972868]
[1761878793668,0.5413306,184.46,184.4,7.82972868]
[1761878793844,0.5413306,184.46,184.34,0.54247585]
[1761878793845,7.82972868,184.42,184.37,0.67]
[1761878794051,7.82972868,184.39,184.34,0.67]
[1761878794372,7.82972868,184.38,184.34,0.67]
[1761878794750,7.82972868,184.37,184.35,5.42446433]
[1761878795649,7.82972868,184.37,184.35,6.09446433]
[1761878796056,7.82972868,184.38,184.35,6.09446433]
[1761878796257,7.82972868,184.39,184.35,6.09446433]
[1761878796456,4.50499207,184.38,184.35,6.09446433]
[1761878796651,3.96366147,184.38,184.36,0.67]
[1761878796853,11.79339015,184.38,184.35,6.09446433]
[1761878797173,3.96366147,184.37,184.35,6.09446433]
[1761878797469,3.96366147,184.37,184.35,5.42446433]
[1761878797665,7.82972868,184.4,184.36,0.67]
[1761878797868,7.27387273,184.39,184.36,0.67]
[1761878798061,0.5413306,184.44,184.37,5.4238759]
[1761878798263,28.42172868,184.41,184.37,5.4238759]
[1761878798470,3.96419087,184.4,184.37,6.0938759]
[1761878798680,3.96419087,184.4,184.38,0.67]
[1761878799350,7.82972868,184.42,184.38,0.67]
[1761878799681,3.96538487,184.41,184.38,0.67]
[1761878800178,3.96538487,184.41,184.39,13.25301627]
[1761878800365,8.37105928,184.44,184.39,5.42328759]
[1761878800545,7.27474744,184.43,184.4,0.67]
[1761878800745,3.96470342,184.42,184.4,0.67]
[1761878800983,8.37105928,184.46,184.4,8.49972868]
[1761878801182,7.2751108,184.45,184.4,8.49972868]
[1761878801474,7.82972868,184.41,184.39,5.42328759]
[1761878801769,3.96510148,184.4,184.39,5.42328759]
[1761878802067,7.82972868,184.42,184.39,6.09328759]
[1761878802368,11.79421711,184.41,184.39,6.09328759]
[1761878802555,3.96394529,184.4,184.39,6.09328759]
[1761878803263,7.82972868,184.42,184.39,6.09328759]
[1761878803566,3.96361756,184.41,184.39,6.09328759]
[1761878803769,3.96361756,184.41,184.39,0.67]
[1761878804372,7.82972868,184.42,184.39,0.67]
[1761878804682,0.5413306,184.45,184.38,5.42358173]
[1761878804683,7.82972868,184.4,184.38,5.42358173]
[1761878804865,7.82972868,184.4,184.38,6.09358173]
[1761878805353,7.82972868,184.4,184.38,5.42358173]
[1761878805555,7.82972868,184.41,184.39,0.67]
[1761878805751,12.33378734,184.4,184.37,5.42381614]
[1761878806065,7.82972868,184.38,184.32,0.67]
[1761878806266,7.82972868,184.36,184.33,5.42505289]
[1761878806645,7.82972868,184.37,184.33,19.65768512]
[1761878807173,7.82972868,184.37,184.33,19.15768512]
[1761878807947,0.41,184.39,184.31,6.09535166]
[1761878807948,4.50086883,184.36,184.31,6.09535166]
[1761878808175,7.82972868,184.34,184.31,6.09535166]
[1761878808370,7.82972868,184.35,184.32,0.67]
[1761878808568,3.56656775,184.38,184.32,0.67]
[1761878808569,0.5413306,184.37,184.32,0.67]
[1761878808876,8.37105928,184.37,184.32,0.67]
[1761878809567,3.56656775,184.38,184.33,7.82972868]
[1761878809871,28.42172868,184.4,184.35,18.98562516]
[1761878810102,3.95868935,184.39,184.35,18.98562516]
[1761878810398,3.95868935,184.39,184.36,0.67]
[1761878810676,3.95868935,184.39,184.36,8.49972868]
[1761878810864,7.82972868,184.42,184.36,8.49972868]
[1761878811059,7.26427064,184.41,184.37,0.67]
[1761878811386,7.26427064,184.4,184.37,0.67]
[1761878811550,7.26427064,184.39,184.37,0.67]
[1761878811752,7.26427064,184.38,184.37,8.49972868]
[1761878811955,7.26427064,184.38,184.37,13.92360458]
[1761878812254,8.37105928,184.43,184.37,27.48329433]
[1761878812471,3.95981925,184.42,184.38,0.67]
[1761878812679,3.95981925,184.42,184.38,8.49972868]
[1761878813054,3.95981925,184.42,184.39,0.67]
[1761878813556,3.95981925,184.41,184.39,0.67]
[1761878813756,8.37105928,184.43,184.39,0.67]
[1761878813969,3.95938157,184.42,184.4,5.42299349]
[1761878814477,3.95938157,184.42,184.4,6.09299349]
[1761878814667,7.82972868,184.43,184.4,6.09299349]
[1761878814864,7.82972868,184.41,184.36,19.65391468]
[1761878815068,8.21925425,184.42,184.36,19.65391468]
[1761878815069,12.33197542,184.4,184.36,19.65391468]
[1761878815268,7.82972868,184.4,184.37,0.67]
[1761878815782,7.82972868,184.41,184.37,0.67]
[1761878816080,3.96119002,184.4,184.38,5.42358173]
[1761878816482,3.96119002,184.4,184.38,6.09358173]
[1761878817976,3.96119002,184.4,184.39,0.67]
[1761878818157,3.96217738,184.41,184.4,5.42299349]
[1761878818357,7.31224333,184.41,184.4,5.42299349]
[1761878818979,7.31224333,184.41,184.4,6.13299349]
[1761878819868,3.96231944,184.41,184.4,6.13299349]
[1761878820282,3.56332715,184.42,184.4,75.66272217]
[1761878820585,7.82972868,184.45,184.41,0.71]
[1761878820761,7.31452469,184.44,184.41,0.71]
[1761878820969,3.9640366,184.43,184.41,0.71]
[1761878821885,8.78105928,184.42,184.39,61.7]
[1761878822074,8.78105928,184.42,184.39,67.12328759]
[1761878822075,7.82972868,184.4,184.39,67.12328759]
[1761878822276,11.79376528,184.4,184.39,67.12328759]
[1761878822673,3.9640366,184.4,184.39,67.12328759]
[1761878823275,32.04124492,184.4,184.34,13.56188746]
[1761878823476,3.18425286,184.37,184.35,5.42446433]
[1761878823781,3.9640366,184.36,184.35,5.42446433]
[1761878824087,3.9640366,184.37,184.35,5.42446433]
[1761878824398,3.9640366,184.37,184.34,18.98664605]
[1761878824399,3.18425286,184.36,184.34,18.98664605]
[1761878824573,3.18425286,184.36,184.34,6.13475859]
[1761878824768,3.18425286,184.36,184.34,5.42475859]
[1761878825072,23.77625286,184.36,184.32,5.42534722]
[1761878825287,2.03886868,184.33,184.32,6.13534722]
[1761878825590,2.03886868,184.33,184.32,5.42534722]
[1761878825797,2.03886868,184.35,184.32,18.98871527]
[1761878826298,2.03886868,184.33,184.32,5.4252429]
[1761878826464,5.99895343,184.33,184.3,5.42566667]
[1761878826669,2.03886868,184.31,184.3,5.42566667]
[1761878827092,2.03886868,184.31,184.3,6.13566667]
[1761878827398,2.03886868,184.31,184.29,5.42620504]
[1761878827697,4.51647118,184.35,184.29,6.13620504]
[1761878827886,7.30790398,184.34,184.3,0.71]
[1761878828091,3.56514058,184.35,184.3,0.71]
[1761878828270,2.03886868,184.34,184.31,18.98974553]
[1761878828471,0.5413306,184.37,184.31,18.98974553]
[1761878828671,2.03886868,184.34,184.32,0.71]
[1761878829798,2.03886868,184.34,184.33,5.42505289]
[1761878830978,2.03886868,184.34,184.32,5.42534722]
[1761878831286,2.03886868,184.34,184.32,6.13534722]
[1761878831795,2.03886868,184.34,184.32,0.71]
[1761878831993,3.56514058,184.36,184.32,0.71]
[1761878832291,2.03886868,184.33,184.32,0.71]
[1761878833081,2.03886868,184.33,184.32,6.13534722]
[1761878833595,9.76498641,184.33,184.28,74.01741288]
[1761878833811,2.03886868,184.29,184.28,74.72741288]
[1761878834010,2.03886868,184.29,184.28,12.31741288]
[1761878834510,2.03886868,184.29,184.28,13.02741288]
[1761878836388,20.592,184.34,184.28,13.02741288]
[1761878836587,2.03886868,184.29,184.28,13.02741288]
[1761878837388,3.56514058,184.35,184.28,26.59372501]
[1761878837702,2.03886868,184.33,184.29,0.7]
[1761878838288,2.03886868,184.32,184.29,0.7]
[1761878838692,2.03886868,184.32,184.3,5.42593597]
[1761878838882,2.03886868,184.31,184.3,5.42593597]
[1761878839083,2.03886868,184.31,184.28,82.15730212]
[1761878839084,2.03886868,184.31,184.28,74.01728488]
[1761878839296,2.03886868,184.29,184.28,74.01728488]
[1761878839613,2.03886868,184.3,184.28,74.71728488]
[1761878840080,2.03886868,184.29,184.28,74.71728488]
[1761878840287,2.03886868,184.29,184.28,12.31728488]
[1761878840682,20.592,184.32,184.28,13.01728488]
[1761878840886,2.03886868,184.29,184.28,12.31728488]
[1761878841582,2.03886868,184.29,184.28,13.01728488]
[1761878841984,2.03886868,184.29,184.28,6.89098999]
[1761878842202,2.03886868,184.29,184.28,12.31751484]
[1761878842684,2.03886868,184.29,184.28,6.89098999]
[1761878842881,2.44886868,184.29,184.28,6.89098999]
[1761878843088,6.94970327,184.29,184.28,6.89098999]
[1761878843315,20.592,184.26,184.2,5.42865214]
[1761878843492,2.03886868,184.21,184.2,5.42865214]
[1761878844113,2.03886868,184.21,184.2,6.12865214]
[1761878845310,5.19979717,184.21,184.18,0.7]
[1761878845689,5.19979717,184.19,184.18,0.7]
[1761878846811,5.19979717,184.2,184.18,0.7]
[1761878847193,5.19979717,184.19,184.18,61.7]
[1761878847409,5.19979717,184.19,184.18,5.4294281]
[1761878848187,5.19979717,184.19,184.15,67.13035568]
[1761878848387,5.19979717,184.18,184.15,81.4062449]
[1761878848786,5.19979717,184.18,184.15,80.7062449]
[1761878848982,5.19979717,184.17,184.16,0.67]
[1761878849426,5.19979717,184.18,184.16,6.10006081]
[1761878850391,5.19979717,184.18,184.16,5.43006081]
[1761878850600,0.9513306,184.27,184.17,0.67]
[1761878850815,5.19979717,184.24,184.18,9.78882769]
[1761878851103,0.5413306,184.27,184.18,9.78882769]
[1761878851104,5.19979717,184.23,184.18,9.78882769]
[1761878851304,5.19979717,184.24,184.2,19.00108577]
[1761878851502,5.19979717,184.24,184.21,0.67]
[1761878851742,5.19979717,184.23,184.21,0.67]
[1761878852194,5.74112777,184.22,184.19,5.42916879]
[1761878852391,5.19979717,184.2,184.19,5.42916879]
[1761878853214,5.19979717,184.2,184.18,5.42943512]
[1761878853401,5.19979717,184.19,184.18,6.09943512]
[1761878853604,0.9513306,184.23,184.18,5.42943512]
[1761878853605,5.19979717,184.2,184.18,5.42943512]
[1761878853816,5.19979717,184.2,184.18,6.09943512]
[1761878854024,5.19979717,184.19,184.18,6.09943512]
[1761878854529,5.19979717,184.19,184.14,0.1]
[1761878854530,5.19979717,184.19,184.14,0.77]
[1761878854699,5.19979717,184.16,184.15,5.43035568]
[1761878855227,5.19979717,184.16,184.15,6.10035568]
[1761878855600,0.9513306,184.21,184.15,6.10035568]
[1761878855601,5.19979717,184.18,184.15,19.6762449]
[1761878855921,0.5413306,184.17,184.14,0.1]
[1761878856126,5.19979717,184.15,184.14,5.53063112]
[1761878856327,5.60979717,184.15,184.14,0.1]
[1761878856828,26.20179717,184.15,184.14,0.1]
[1761878857835,26.20179717,184.15,184.09,0.1]
[1761878857836,20.592,184.14,184.09,0.1]
[1761878858009,28.29731234,184.13,184.09,0.1]
[1761878858200,20.592,184.1,184.09,0.1]
[1761878858399,9.67206298,184.1,184.09,0.1]
[1761878858625,3.93093521,184.1,184.09,0.1]
[1761878858808,0.5413306,184.13,184.09,0.1]
[1761878859152,0.5413306,184.13,184.09,5.53212254]
[1761878859300,5.19979717,184.1,184.09,0.1]
[1761878859503,0.31,184.1,184.09,0.1]
[1761878859941,0.5413306,184.11,184.09,0.1]
[1761878860133,0.5413306,184.12,184.09,0.1]
[1761878860318,26.64312777,184.15,184.09,0.1]
[1761878860637,20.592,184.11,184.09,5.53212087]
[1761878860840,21.1333306,184.1,184.09,0.1]
[1761878862439,21.1333306,184.1,184.09,5.53212559]
[1761878862614,20.592,184.1,184.09,5.53212559]
[1761878862805,0.5413306,184.13,184.09,6.20212559]
[1761878863208,5.50979717,184.12,184.09,5.53212559]
[1761878863523,0.5413306,184.11,184.09,5.53212559]
[1761878864201,20.592,184.1,184.09,5.53212559]
[1761878864835,20.592,184.1,184.09,0.1]
[1761878865014,0.31,184.1,184.09,0.1]
[1761878865205,0.5413306,184.1,184.09,0.1]
[1761878866354,6.05112777,184.1,184.09,0.1]
[1761878866711,5.74112777,184.1,184.09,0.1]
[1761878866927,0.5413306,184.1,184.09,0.1]
[1761878867210,5.19979717,184.1,184.09,0.1]
[1761878867632,0.8513306,184.12,184.09,0.1]
[1761878867834,5.19979717,184.1,184.09,0.1]
[1761878868209,5.74112777,184.1,184.09,0.1]
[1761878868621,20.592,184.13,184.09,0.1]
[1761878868622,5.19979717,184.11,184.09,5.53212559]
[1761878869246,0.5413306,184.13,184.1,0.67]
[1761878869551,5.74112777,184.13,184.1,0.67]
[1761878869723,0.5413306,184.17,184.11,19.01037422]
[1761878869921,13.11789986,184.25,184.12,0.67]
[1761878869922,0.31,184.21,184.12,0.67]
[1761878870122,5.74112777,184.2,184.14,5.19979717]
[1761878870334,5.19979717,184.19,184.12,5.86979717]
[1761878870549,4.05659431,184.24,184.18,5.19979717]
[1761878870718,0.5413306,184.24,184.19,5.19979717]
[1761878871044,0.5413306,184.24,184.21,5.19979717]
[1761878871335,0.5413306,184.26,184.21,5.19979717]
[1761878871520,5.19979717,184.27,184.22,0.67]
[1761878871725,0.5413306,184.26,184.23,5.42799761]
[1761878872538,0.5413306,184.29,184.24,5.86979717]
[1761878872911,0.5413306,184.29,184.25,0.67]
[1761878873321,0.8513306,184.32,184.25,5.86979717]
[1761878873530,6.05112777,184.32,184.26,5.19979717]
[1761878873731,6.05112777,184.32,184.27,5.42681934]
[1761878874042,0.8513306,184.32,184.26,5.19979717]
[1761878874236,6.05112777,184.32,184.26,10.6269014]
[1761878874432,0.5413306,184.32,184.27,5.19979717]
[1761878874632,0.5413306,184.32,184.28,5.86979717]
[1761878874837,0.5413306,184.33,184.29,5.19979717]
[1761878875055,0.5413306,184.33,184.29,5.86979717]
[1761878875348,0.5413306,184.34,184.3,5.86979717]
[1761878875720,0.5413306,184.34,184.31,5.42564158]
[1761878876344,0.7413306,184.35,184.31,6.09564158]
[1761878876718,0.2,184.35,184.32,5.86979717]
[1761878876919,0.2,184.35,184.33,0.67]
[1761878877229,0.2,184.35,184.33,5.86979717]
[1761878877616,0.2,184.35,184.33,0.67]
[1761878877838,0.2,184.35,184.29,6.09594746]
[1761878878022,20.592,184.33,184.31,5.19979717]
[1761878878549,20.592,184.33,184.32,0.67]
[1761878880044,5.19979717,184.34,184.28,9.78882769]
[1761878880223,20.592,184.33,184.32,0.66]
[1761878880826,0.2,184.35,184.32,5.85979717]
[1761878881029,0.2,184.35,184.34,5.19979717]
[1761878881240,0.2,184.35,184.34,0.66]
[1761878881441,0.2,184.35,184.34,5.85979717]
[1761878882046,0.2,184.35,184.34,11.28455576]
[1761878884644,0.2,184.35,184.34,6.08475859]
[1761878884846,0.2,184.35,184.34,21.07338345]
[1761878885049,1e-08,184.35,184.34,21.07338345]
[1761878885825,1e-08,184.35,184.34,21.6158593]
[1761878886644,1e-08,184.35,184.34,21.90018244]
[1761878887447,1e-08,184.35,184.34,24.5249406]
[1761878888150,1e-08,184.35,184.34,15.87358628]
[1761878888746,1e-08,184.35,184.34,23.69814161]
[1761878890030,1e-08,184.35,184.34,23.98246475]
[1761878891244,1e-08,184.35,184.34,15.87358628]
[1761878891445,1e-08,184.35,184.34,23.69814161]
[1761878892460,1e-08,184.35,184.34,23.98246475]
[1761878894638,1e-08,184.35,184.34,16.15790942]
[1761878895035,1e-08,184.35,184.34,15.87358628]
[1761878895553,1e-08,184.35,184.34,23.69814161]
[1761878896660,1e-08,184.35,184.34,24.24061746]
[1761878898271,1e-08,184.35,184.34,15.87358628]
[1761878900482,7.82455534,184.35,184.34,5.42475859]
[1761878900672,7.82455534,184.35,184.28,8.36720781]
[1761878900673,8.13455534,184.35,184.3,15.21476366]
[1761878900976,7.82455533,184.31,184.3,18.9907759]
[1761878901157,7.82455533,184.31,184.3,28.77960359]
[1761878901353,7.82455533,184.33,184.3,28.77960359]
[1761878902058,7.82455533,184.32,184.3,15.21476366]
[1761878902270,7.82455533,184.31,184.3,15.21476366]
[1761878902462,7.82455533,184.31,184.3,5.42593597]
[1761878903255,7.82455533,184.32,184.3,5.42593597]
[1761878903463,7.82455533,184.33,184.29,18.99180638]
[1761878903962,1e-08,184.35,184.3,10.50882769]
[1761878904283,1e-08,184.35,184.31,17.61338302]
[1761878904461,1e-08,184.35,184.32,0.72]
[1761878904773,1e-08,184.35,184.33,9.78882769]
[1761878904975,1e-08,184.35,184.33,10.50882769]
[1761878905367,1e-08,184.35,184.34,5.42475859]
[1761878905568,8.13455534,184.35,184.27,0.72]
[1761878905771,7.82455533,184.34,184.29,28.78063407]
[1761878906081,7.82455533,184.34,184.29,29.50063407]
[1761878906475,7.82455533,184.33,184.29,29.50063407]
[1761878907772,7.82455533,184.34,184.3,0.72]
[1761878907977,7.82455534,184.35,184.3,0.72]
[1761878908676,7.82455533,184.34,184.3,0.72]
[1761878909000,7.82455534,184.35,184.31,9.78882769]
[1761878909161,7.82455534,184.35,184.31,0.69]
[1761878909888,7.82455534,184.35,184.32,18.98871527]
[1761878910576,1e-08,184.35,184.32,19.67871527]
[1761878911084,1e-08,184.35,184.34,9.78882769]
[1761878911466,1e-08,184.35,184.34,10.47882769]
[1761878911864,1e-08,184.35,184.34,23.72814161]
[1761878914290,4.08907743,184.45,184.34,23.72814161]
[1761878914291,1e-08,184.4,184.34,64.41383109]
[1761878914590,3.95745107,184.44,184.41,9.78882769]
[1761878914766,7.82455533,184.47,184.41,17.61338302]
[1761878914969,7.82455533,184.45,184.4,9.78882769]
[1761878915175,11.78239105,184.44,184.38,8.51455533]
[1761878915377,3.95783572,184.43,184.39,9.78882769]
[1761878915774,3.95783572,184.43,184.39,10.47882769]
[1761878916171,3.95783572,184.42,184.39,10.47882769]
[1761878916371,7.82455533,184.44,184.4,18.98047722]
[1761878916572,3.96446245,184.43,184.4,18.98047722]
[1761878917182,3.96423484,184.42,184.4,18.98047722]
[1761878917382,3.96423484,184.41,184.4,18.98047722]
[1761878917578,7.82455533,184.44,184.4,18.98047722]
[1761878917777,3.9665991,184.43,184.4,18.98047722]
[1761878918389,3.9665991,184.42,184.4,18.98047722]
[1761878918583,7.82455533,184.44,184.4,18.98047722]
[1761878918793,3.96828277,184.43,184.4,18.98047722]
[1761878919088,3.96828277,184.42,184.4,18.98047722]
[1761878919286,3.96828277,184.41,184.4,18.98047722]
[1761878919493,3.96828277,184.43,184.4,18.98047722]
[1761878919662,3.96828277,184.42,184.4,18.98047722]
[1761878919861,3.96828277,184.41,184.4,18.98047722]
[1761878920075,7.82455533,184.44,184.4,18.98047722]
[1761878920388,4.82129599,184.43,184.38,5.42358173]
[1761878920599,7.82455533,184.4,184.38,5.42358173]
[1761878921463,11.79531451,184.39,184.36,5.4241701]
[1761878921675,7.82455533,184.37,184.34,5.42446811]
[1761878921886,7.82455533,184.35,184.34,5.42446811]
[1761878922662,11.79493526,184.35,184.34,5.42446811]
[1761878923386,3.97037993,184.35,184.31,13.56339265]
[1761878923588,7.82455533,184.35,184.31,13.56339265]
[1761878924464,7.82455533,184.35,184.31,14.25339265]
[1761878924880,3.54774683,184.38,184.31,14.25339265]
[1761878924881,3.54774683,184.38,184.31,21.38794798]
[1761878925072,11.79704666,184.37,184.31,21.38794798]
[1761878925265,11.79704666,184.36,184.31,13.56339265]
[1761878925465,11.79704666,184.35,184.31,18.98903423]
[1761878925665,3.97249133,184.34,184.31,18.98903423]
[1761878926081,7.82455533,184.35,184.31,19.67903423]
[1761878927192,3.85774683,184.38,184.31,19.67903423]
[1761878927384,7.82455533,184.36,184.32,0.69]
[1761878928977,7.82455533,184.34,184.31,5.42564158]
[1761878929299,7.82455533,184.35,184.31,19.67974553]
[1761878929495,3.54774683,184.37,184.32,9.78882769]
[1761878929796,7.82455533,184.37,184.32,10.47882769]
[1761878930093,7.82455533,184.36,184.32,10.47882769]
[1761878930992,3.54774683,184.37,184.32,10.47882769]
[1761878931175,11.79830227,184.36,184.34,5.42475859]
[1761878931376,7.82455533,184.36,184.34,5.42475859]
[1761878932387,7.82455533,184.36,184.33,18.98768395]
[1761878932589,7.82455533,184.36,184.33,19.67768395]
[1761878932899,7.82455533,184.37,184.33,19.67768395]
[1761878933305,3.85774683,184.38,184.33,19.67768395]
[1761878933306,11.37230216,184.38,184.34,10.47882769]
[1761878933600,3.54774683,184.38,184.34,10.47882769]
[1761878933801,7.82455533,184.39,184.34,9.78882769]
[1761878934106,7.82455533,184.37,184.34,9.78882769]
[1761878934395,7.82455533,184.37,184.35,5.42446433]
[1761878934983,7.82455533,184.38,184.35,5.42446433]
[1761878935385,7.82455533,184.38,184.35,6.11446433]
[1761878935586,7.82455533,184.39,184.36,0.69]
[1761878935793,11.79919211,184.38,184.35,18.98562516]
[1761878935980,7.82455533,184.38,184.35,18.98562516]
[1761878936180,7.82455533,184.38,184.35,19.67562516]
[1761878937596,20.592,184.4,184.35,19.67562516]
[1761878937796,7.82455533,184.38,184.35,18.98562516]
[1761878938006,7.82455533,184.38,184.35,19.67562516]
[1761878940308,11.37230216,184.39,184.36,0.72]
[1761878940611,11.37230216,184.39,184.35,19.70562516]
[1761878941206,3.54774683,184.39,184.35,19.70562516]
[1761878941390,7.82455533,184.39,184.35,19.70562516]
[1761878941589,11.37230216,184.39,184.37,5.4238759]
[1761878941786,3.54774683,184.39,184.37,5.4238759]
[1761878941988,4.39907743,184.42,184.37,18.98356565]
[1761878942189,7.82455533,184.4,184.37,19.70356565]
[1761878942388,7.82455533,184.42,184.38,0.72]
[1761878943609,7.82455533,184.41,184.37,18.98356565]
[1761878943813,7.82455533,184.39,184.36,5.4241701]
[1761878943994,7.82455533,184.37,184.35,5.42443932]
[1761878944199,0.31,184.39,184.35,5.42443932]
[1761878944200,7.82455533,184.36,184.35,5.42443932]
[1761878944393,7.82455533,184.36,184.33,13.56205526]
[1761878944394,7.82455533,184.36,184.33,18.98682776]
[1761878944706,7.82455533,184.34,184.33,18.98682776]
[1761878945488,7.82455533,184.36,184.33,19.70682776]
[1761878947514,25.0215509,184.39,184.33,19.70682776]
[1761878947720,4.4295509,184.39,184.33,19.70682776]
[1761878947902,7.82455533,184.36,184.33,19.70682776]
[1761878948213,4.4295509,184.39,184.33,19.70682776]
[1761878948214,7.82455533,184.34,184.33,5.4247725]
[1761878948412,7.82455533,184.34,184.31,5.42543334]
[1761878948603,7.82455533,184.33,184.31,5.42543334]
[1761878948786,7.82455533,184.33,184.3,18.99021358]
[1761878949435,5.1920104,184.31,184.3,18.99021358]
[1761878949609,5.1920104,184.31,184.3,5.42593597]
[1761878950825,5.1920104,184.31,184.29,5.42623039]
[1761878950996,5.1920104,184.32,184.29,19.71180638]
[1761878951192,0.5413306,184.36,184.29,19.71180638]
[1761878951391,5.1920104,184.34,184.3,0.72]
[1761878951696,0.5413306,184.36,184.31,5.1920104]
[1761878951697,20.592,184.36,184.31,5.1920104]
[1761878951894,29.3622307,184.36,184.32,0.72]
[1761878952095,25.7840104,184.36,184.32,0.72]
[1761878952298,5.1920104,184.35,184.3,10.50882769]
[1761878952699,5.1920104,184.35,184.31,19.70974553]
[1761878952910,3.57604845,184.36,184.31,19.70974553]
[1761878952911,8.76805885,184.36,184.31,19.70974553]
[1761878953103,5.1920104,184.36,184.32,0.72]
[1761878953316,5.1920104,184.35,184.32,0.72]
[1761878953704,8.76808208,184.36,184.32,0.72]
[1761878955129,5.1920104,184.36,184.33,18.98768512]
[1761878955490,3.57543586,184.38,184.34,0.72]
[1761878955697,5.1920104,184.4,184.34,5.9120104]
[1761878956120,5.1920104,184.4,184.35,0.67]
[1761878956294,5.1920104,184.41,184.35,0.67]
[1761878956498,5.5020104,184.4,184.35,9.78882769]
[1761878956704,5.1920104,184.39,184.35,9.78882769]
[1761878956905,5.1920104,184.39,184.35,10.45882769]
[1761878957221,5.1920104,184.39,184.36,18.98459535]
[1761878957614,3.57543586,184.41,184.36,18.98459535]
[1761878957917,5.1920104,184.4,184.36,19.65459535]
[1761878958727,5.1920104,184.4,184.38,5.42358173]
[1761878958906,3.57543586,184.42,184.38,18.98253606]
[1761878959108,5.1920104,184.43,184.39,0.67]
[1761878959605,5.1920104,184.42,184.38,5.42358173]
[1761878959912,5.1920104,184.41,184.38,5.42358173]
[1761878960105,0.31,184.42,184.38,5.42358173]
[1761878960304,5.1920104,184.41,184.38,5.42358173]
[1761878960508,5.1920104,184.41,184.38,18.98253606]
[1761878961117,5.1920104,184.41,184.38,13.55895433]
[1761878961297,5.1920104,184.4,184.38,13.55895433]
[1761878961700,5.1920104,184.39,184.37,5.4238759]
[1761878962507,0.8513306,184.42,184.37,19.65356565]
[1761878962712,4.11676646,184.43,184.38,0.67]
[1761878962913,5.1920104,184.41,184.38,0.67]
[1761878963122,5.1920104,184.4,184.39,5.42328759]
[1761878963909,5.1920104,184.4,184.35,9.78882769]
[1761878964104,5.1920104,184.39,184.36,5.4241701]
[1761878964626,5.1920104,184.39,184.36,6.0941701]
[1761878964803,5.1920104,184.4,184.36,19.65459535]
[1761878965434,2.03751381,184.4,184.36,19.65459535]
[1761878965723,2.03751381,184.4,184.36,18.98459535]
[1761878966018,2.03751381,184.4,184.38,5.42358173]
[1761878967813,2.03751381,184.4,184.36,18.98459535]
[1761878968130,2.03751381,184.4,184.38,0.67]
[1761878968434,2.03751381,184.41,184.38,0.67]
[1761878968724,5.61294967,184.42,184.38,0.67]